bitfinex-derivatives/quotes_BTCF0:USTF0_20241122
["timestamp","ask_amount","ask_price","bid_price","bid_amount"]
[1732300272164,0.3608,98834.0,98833.0,0.050532]
[1732300272471,0.05053,98837.0,98836.0,0.05053]
[1732300272960,0.05053,98837.0,98836.0,0.05232752]
[1732300275067,0.3608,98840.0,98837.0,0.05053]
[1732300276065,0.00151813,98845.0,98844.0,0.050526]
[1732300276260,0.00151813,98845.0,98844.0,1.381326]
[1732300276466,0.0319,98869.0,98844.0,1.381326]
[1732300276467,0.0901288,98874.0,98846.0,0.050525]
[1732300276764,0.0901288,98874.0,98844.0,1.63432]
[1732300276765,0.01228214,98869.0,98868.0,0.050514]
[1732300276965,0.01020241,98870.0,98869.0,0.050513]
[1732300277167,0.01266138,98870.0,98869.0,0.05055635]
[1732300277471,0.0317,98878.0,98877.0,0.050509]
[1732300277663,0.04453461,98878.0,98877.0,0.050509]
[1732300278167,0.01283461,98878.0,98877.0,0.05223681]
[1732300278365,0.00010275,98881.0,98877.0,0.05223681]
[1732300278366,0.00010275,98881.0,98880.0,0.050508]
[1732300279064,0.00010275,98881.0,98880.0,0.05223581]
[1732300280360,0.00010275,98881.0,98880.0,0.23223581]
[1732300283276,0.01289145,98881.0,98880.0,0.23223581]
[1732300283574,0.00010275,98881.0,98880.0,0.23223581]
[1732300285571,0.00010275,98881.0,98880.0,0.18172781]
[1732300285775,0.01290374,98881.0,98880.0,0.00172781]
[1732300286465,0.09451074,98881.0,98880.0,0.00172781]
[1732300286673,0.050511,98873.0,98870.0,0.050513]
[1732300286871,0.411312,98871.0,98870.0,0.050513]
[1732300287272,0.411312,98871.0,98870.0,0.250513]
[1732300289379,0.42392727,98871.0,98870.0,0.250513]
[1732300289564,0.411312,98871.0,98870.0,0.250513]
[1732300290072,0.42391785,98871.0,98870.0,0.250513]
[1732300290277,0.42391683,98871.0,98870.0,0.250513]
[1732300290473,0.06311683,98871.0,98870.0,0.250513]
[1732300290675,0.42391683,98871.0,98870.0,0.250513]
[1732300291772,0.42391683,98871.0,98870.0,0.2]
[1732300291977,0.050513,98870.0,98864.0,0.050516]
[1732300292179,0.050513,98870.0,98853.0,0.3608]
[1732300292476,0.050523,98850.0,98838.0,0.13352]
[1732300292678,0.411323,98850.0,98849.0,0.050524]
[1732300292876,0.050527,98845.0,98844.0,0.050525]
[1732300293283,0.050526,98845.0,98844.0,0.050525]
[1732300293875,0.0322,98849.0,98840.0,0.00067]
[1732300294086,0.411328,98841.0,98840.0,0.00067]
[1732300294380,0.42352028,98841.0,98840.0,0.00067]
[1732300295080,0.411328,98841.0,98840.0,0.00067]
[1732300295383,0.4235619,98841.0,98840.0,0.00067]
[1732300295582,0.411328,98841.0,98840.0,0.00067]
[1732300295785,0.42354595,98841.0,98840.0,0.051198]
[1732300296184,0.411328,98841.0,98840.0,0.051198]
[1732300296383,0.411328,98841.0,98840.0,0.00067]
[1732300296983,0.42352696,98841.0,98840.0,0.00067]
[1732300297189,0.050543,98822.0,98821.0,0.050542]
[1732300297880,0.3608,98823.0,98796.0,0.13352]
[1732300298187,0.411346,98814.0,98791.0,0.0315]
[1732300298482,0.05055,98809.0,98808.0,0.050549]
[1732300300990,0.050553,98803.0,98802.0,0.050553]
[1732300301201,0.050553,98802.0,98795.0,0.050556]
[1732300301486,0.050559,98789.0,98788.0,0.05207838]
[1732300301689,0.411359,98789.0,98788.0,0.05207838]
[1732300301987,0.411359,98789.0,98788.0,0.00151838]
[1732300302193,0.411359,98789.0,98788.0,0.05207838]
[1732300302785,0.411359,98789.0,98788.0,0.00151838]
[1732300306387,0.411359,98789.0,98788.0,0.05207838]
[1732300306783,0.411359,98789.0,98788.0,0.00151838]
[1732300307287,0.411359,98789.0,98759.0,0.0333]
[1732300307484,0.3608,98766.0,98765.0,0.050572]
[1732300307685,0.411371,98766.0,98765.0,0.050625]
[1732300307984,0.411371,98766.0,98765.0,5.3e-05]
[1732300308192,0.411371,98766.0,98765.0,0.050625]
[1732300309084,0.3608,98766.0,98765.0,0.050625]
[1732300309281,0.3608,98766.0,98765.0,0.060625]
[1732300310388,0.3608,98783.0,98777.0,0.050563]
[1732300310586,0.02021314,98789.0,98786.0,0.050561]
[1732300310786,0.02021314,98789.0,98788.0,0.05056]
[1732300311693,0.38101314,98789.0,98788.0,0.05056]
[1732300311884,0.38101314,98789.0,98786.0,0.16]
[1732300312085,0.38101314,98789.0,98771.0,0.0301]
[1732300312294,0.411368,98772.0,98771.0,0.180169]
[1732300312490,0.3608,98772.0,98771.0,0.180169]
[1732300314902,0.050558,98792.0,98771.0,0.180169]
[1732300314903,0.00151872,98809.0,98788.0,0.05056]
[1732300315201,0.00151872,98809.0,98808.0,0.05055]
[1732300315392,0.29242459,98819.0,98818.0,0.050544]
[1732300317714,0.050547,98814.0,98798.0,0.392]
[1732300317903,0.3608,98810.0,98809.0,0.050549]
[1732300319006,0.411349,98810.0,98809.0,0.050549]
[1732300321500,0.05055,98808.0,98789.0,5.3e-05]
[1732300321799,0.411359,98790.0,98789.0,0.050612]
[1732300322194,0.411359,98790.0,98789.0,5.3e-05]
[1732300323202,0.30368,98789.0,98755.0,0.3608]
[1732300323394,0.411359,98790.0,98755.0,0.320577]
[1732300323395,0.3608,98756.0,98755.0,0.320577]
[1732300323794,0.3608,98756.0,98755.0,0.050577]
[1732300324201,0.3608,98756.0,98755.0,0.05065419]
[1732300329011,0.411376,98756.0,98755.0,0.05065419]
[1732300329201,0.411376,98756.0,98755.0,0.10065419]
[1732300329398,0.3608,98756.0,98755.0,0.10065419]
[1732300332807,0.411376,98756.0,98755.0,0.10065419]
[1732300333208,0.411376,98756.0,98755.0,0.05007719]
[1732300333610,0.050576,98756.0,98755.0,0.05007719]
[1732300333808,0.3623191,98776.0,98755.0,0.05007719]
[1732300333809,0.0015191,98776.0,98755.0,0.05007719]
[1732300334000,0.51101466,98797.0,98755.0,0.05007719]
[1732300334001,0.08150146,98784.0,98775.0,0.411366]
[1732300334201,0.19545761,98812.0,98775.0,0.411366]
[1732300334202,0.12017173,98799.0,98784.0,0.050562]
[1732300334408,0.12017173,98799.0,98783.0,0.3608]
[1732300334409,0.031,98806.0,98792.0,0.3608]
[1732300334613,0.031,98806.0,98805.0,0.050551]
[1732300334804,0.00151869,98810.0,98800.0,0.3608]
[1732300335006,0.00151869,98810.0,98809.0,0.411349]
[1732300335310,0.02173744,98810.0,98809.0,0.411349]
[1732300335498,0.00151869,98810.0,98809.0,0.501349]
[1732300335699,0.12001057,98835.0,98811.0,0.050548]
[1732300335904,0.032,98837.0,98809.0,1.174949]
[1732300335905,0.0309509,98832.0,98819.0,0.3608]
[1732300336110,0.050539,98829.0,98820.0,0.050153]
[1732300336410,0.12001057,98836.0,98826.0,0.050539]
[1732300336411,0.05054,98827.0,98826.0,0.050539]
[1732300336802,0.121,98836.0,98819.0,0.3608]
[1732300337000,0.121,98836.0,98835.0,0.050536]
[1732300337307,0.0115945,98836.0,98835.0,0.05061395]
[1732300337509,0.12001057,98839.0,98838.0,0.050534]
[1732300337709,0.1318805,98839.0,98838.0,0.411334]
[1732300338104,0.01186993,98839.0,98838.0,0.411334]
[1732300338611,0.050531,98844.0,98842.0,0.050532]
[1732300338815,0.062681,98843.0,98842.0,0.050532]
[1732300339313,0.050534,98839.0,98838.0,0.3608]
[1732300339708,0.06277893,98839.0,98838.0,0.3608]
[1732300340013,0.01224493,98839.0,98838.0,0.411334]
[1732300340220,0.01224493,98839.0,98838.0,0.45921619]
[1732300340417,0.02020212,98843.0,98842.0,0.050532]
[1732300340618,0.03244605,98843.0,98842.0,0.050532]
[1732300340916,0.00151823,98851.0,98850.0,0.050528]
[1732300341119,0.01371722,98851.0,98850.0,0.050528]
[1732300341414,0.05204623,98851.0,98850.0,0.050528]
[1732300342005,0.00151823,98851.0,98850.0,0.3608]
[1732300342211,0.02172035,98851.0,98850.0,0.411328]
[1732300345217,0.00151823,98851.0,98850.0,0.971328]
[1732300345413,0.00151823,98851.0,98850.0,0.99925004]
[1732300345608,0.00151823,98851.0,98850.0,0.62925004]
[1732300347017,0.050533,98841.0,98838.0,0.412694]
[1732300347313,0.050528,98850.0,98838.0,0.40785133]
[1732300347509,0.050528,98850.0,98838.0,0.45838533]
[1732300347723,0.050533,98840.0,98838.0,0.45838533]
[1732300348511,0.050531,98845.0,98841.0,0.050532]
[1732300348712,0.050532,98843.0,98841.0,0.050532]
[1732300349111,0.00151823,98851.0,98838.0,0.40921133]
[1732300349420,0.00151823,98851.0,98850.0,0.050528]
[1732300350118,0.05204623,98851.0,98850.0,0.050528]
[1732300350315,0.00151823,98851.0,98848.0,0.3608]
[1732300350520,0.050529,98849.0,98848.0,0.3608]
[1732300351921,0.050535,98836.0,98835.0,7.795e-05]
[1732300352128,0.050535,98836.0,98835.0,0.04700861]
[1732300352730,0.050535,98836.0,98835.0,0.38754361]
[1732300352915,0.050535,98836.0,98835.0,0.33700861]
[1732300353224,0.050535,98836.0,98835.0,7.795e-05]
[1732300354526,0.050535,98836.0,98835.0,0.05061395]
[1732300354715,0.050535,98836.0,98835.0,0.78061395]
[1732300355324,0.050535,98836.0,98835.0,0.73007795]
[1732300355619,0.0201957,98849.0,98835.0,0.73007795]
[1732300355825,0.05053,98847.0,98846.0,0.050529]
[1732300356126,0.05053,98847.0,98846.0,0.340529]
[1732300356322,0.0201957,98849.0,98846.0,0.29]
[1732300356527,0.00151823,98851.0,98848.0,0.3608]
[1732300356820,0.00151823,98851.0,98850.0,0.050528]
[1732300357322,0.00151823,98851.0,98850.0,0.05060595]
[1732300357824,0.050521,98865.0,98854.0,0.050526]
[1732300358018,0.3608,98876.0,98854.0,0.050526]
[1732300358218,0.050522,98863.0,98854.0,0.050526]
[1732300358420,0.3608,98876.0,98854.0,0.050526]
[1732300358923,0.050516,98874.0,98854.0,0.050526]
[1732300359116,0.050523,98860.0,98854.0,0.050526]
[1732300359317,0.050524,98859.0,98854.0,0.050526]
[1732300359529,0.3608,98876.0,98854.0,0.050526]
[1732300359721,0.050522,98862.0,98854.0,0.050526]
[1732300359914,0.3608,98876.0,98854.0,0.050526]
[1732300360118,0.050517,98872.0,98854.0,0.050526]
[1732300360327,0.3608,98876.0,98854.0,0.050526]
[1732300360625,0.050517,98871.0,98870.0,0.050518]
[1732300360929,0.07071645,98871.0,98870.0,0.050518]
[1732300361716,0.05052,98866.0,98865.0,0.41132]
[1732300361925,0.05052,98866.0,98865.0,0.9508]
[1732300363331,0.06267506,98866.0,98865.0,0.99801843]
[1732300364232,0.06267506,98866.0,98865.0,1.04853843]
[1732300364430,0.01215506,98866.0,98865.0,1.04853843]
[1732300365433,0.0015175,98878.0,98877.0,0.050514]
[1732300365734,0.01374395,98878.0,98877.0,0.58139161]
[1732300366128,0.01374395,98878.0,98877.0,0.53087761]
[1732300367026,0.03330922,98878.0,98877.0,0.53087761]
[1732300367933,0.03179172,98878.0,98877.0,0.57839879]
[1732300368235,0.01222645,98878.0,98877.0,0.57839879]
[1732300368532,0.01222645,98878.0,98877.0,0.62891279]
[1732300370238,0.11951862,98895.0,98878.0,0.050514]
[1732300370428,0.0194245,98894.0,98893.0,0.050506]
[1732300370622,0.0194245,98894.0,98893.0,1.321306]
[1732300372032,0.050506,98894.0,98893.0,1.2708]
[1732300372630,0.050504,98898.0,98896.0,0.050504]
[1732300372932,0.06982258,98897.0,98896.0,0.050504]
[1732300373234,0.06982258,98897.0,98879.0,0.050513]
[1732300373235,0.13539858,98897.0,98873.0,0.00151703]
[1732300373439,0.11951862,98892.0,98877.0,0.97839879]
[1732300373638,0.050512,98883.0,98882.0,0.050511]
[1732300373938,0.050512,98883.0,98877.0,0.97839879]
[1732300373939,0.050514,98878.0,98877.0,0.97935879]
[1732300374130,0.050514,98878.0,98877.0,0.97839879]
[1732300374328,0.050514,98878.0,98877.0,1.02891279]
[1732300374525,0.050514,98878.0,98877.0,0.97839879]
[1732300374727,0.050514,98878.0,98877.0,1.02891279]
[1732300374929,0.11951862,98889.0,98877.0,0.97839879]
[1732300375130,0.050513,98883.0,98882.0,0.050512]
[1732300375336,0.050513,98883.0,98877.0,0.97839879]
[1732300375337,0.11951862,98889.0,98877.0,0.97935879]
[1732300375538,0.050513,98880.0,98879.0,0.050513]
[1732300375840,0.05051,98885.0,98882.0,0.050512]
[1732300376031,0.050511,98884.0,98882.0,0.050512]
[1732300376231,0.01942967,98883.0,98882.0,0.050512]
[1732300376433,0.050511,98883.0,98882.0,0.050512]
[1732300377143,0.050512,98883.0,98881.0,0.050512]
[1732300377434,0.050512,98883.0,98882.0,0.050512]
[1732300377744,0.0700669,98883.0,98882.0,0.050512]
[1732300378328,0.0195549,98883.0,98882.0,0.050512]
[1732300379635,0.11951862,98892.0,98882.0,0.3608]
[1732300379838,0.1200757,98893.0,98891.0,0.3608]
[1732300380039,0.01958473,98892.0,98891.0,1.11938738]
[1732300380237,0.01958473,98892.0,98891.0,1.16989438]
[1732300380636,0.07009173,98892.0,98891.0,1.16989438]
[1732300381136,0.01958473,98892.0,98891.0,1.16989438]
[1732300381438,0.01958473,98892.0,98891.0,1.47338192]
[1732300381832,0.01958473,98892.0,98891.0,1.52032997]
[1732300382038,0.03211948,98892.0,98891.0,1.52032997]
[1732300382240,0.01253475,98892.0,98891.0,1.52032997]
[1732300382542,0.01253475,98892.0,98891.0,1.67124812]
[1732300383143,0.01253475,98892.0,98891.0,1.36788812]
[1732300385145,0.1,98900.0,98891.0,1.62074112]
[1732300385440,0.14939828,98924.0,98919.0,0.050493]
[1732300385651,0.0316,98927.0,98926.0,0.050489]
[1732300385652,0.09746722,98927.0,98926.0,0.050489]
[1732300385951,0.36132001,98931.0,98919.0,0.960493]
[1732300385952,0.02070321,98931.0,98919.0,1.06168147]
[1732300386146,0.050483,98938.0,98919.0,0.91]
[1732300386444,0.050492,98921.0,98920.0,0.15220418]
[1732300386652,0.050492,98921.0,98920.0,0.00012287]
[1732300387445,0.050492,98920.0,98919.0,0.95497387]
[1732300387644,0.050492,98920.0,98919.0,1.00546687]
[1732300387846,0.050492,98920.0,98919.0,0.95609387]
[1732300388351,0.050492,98920.0,98919.0,0.95497387]
[1732300388551,0.050492,98920.0,98919.0,1.00556374]
[1732300388735,0.050492,98920.0,98919.0,0.95507074]
[1732300389145,0.050492,98920.0,98919.0,1.00556374]
[1732300390646,0.0201832,98931.0,98922.0,0.050491]
[1732300390841,0.050491,98923.0,98922.0,0.050491]
[1732300391038,0.050492,98920.0,98919.0,0.95507074]
[1732300391746,0.050492,98920.0,98919.0,1.00556374]
[1732300391943,0.050492,98920.0,98919.0,0.95507074]
[1732300392342,0.050492,98920.0,98919.0,1.00556374]
[1732300392537,0.050492,98920.0,98919.0,0.95507074]
[1732300393257,0.050498,98908.0,98890.0,0.0307]
[1732300393550,0.0505,98906.0,98891.0,0.3608]
[1732300393752,0.050507,98892.0,98891.0,0.3608]
[1732300394047,0.050507,98891.0,98890.0,0.33]
[1732300394446,0.050513,98880.0,98871.0,0.36343693]
[1732300394748,0.050513,98880.0,98879.0,0.7508]
[1732300395446,0.050513,98880.0,98871.0,0.00263693]
[1732300395744,0.050517,98872.0,98871.0,0.00151693]
[1732300397349,0.049997,98872.0,98871.0,0.00151693]
[1732300397555,0.050522,98862.0,98859.0,0.050523]
[1732300397857,0.0325,98873.0,98850.0,0.40646947]
[1732300398050,0.050526,98857.0,98856.0,0.050525]
[1732300398251,0.0325,98873.0,98850.0,0.40758947]
[1732300398552,0.050528,98851.0,98850.0,0.52]
[1732300398754,0.05053,98846.0,98845.0,0.3608]
[1732300398944,0.050533,98840.0,98839.0,0.0474098]
[1732300399145,0.050538,98831.0,98830.0,0.00151755]
[1732300400355,0.050538,98831.0,98814.0,0.3608]
[1732300400356,0.050553,98801.0,98800.0,0.1]
[1732300400744,0.050553,98801.0,98800.0,0.5075399]
[1732300401147,0.050552,98804.0,98801.0,0.050553]
[1732300401352,0.11784,98818.0,98800.0,0.5075399]
[1732300401557,0.11784,98822.0,98814.0,0.411346]
[1732300401852,0.050535,98837.0,98815.0,0.050546]
[1732300402054,0.050545,98818.0,98815.0,0.15221041]
[1732300402257,0.050545,98816.0,98815.0,0.15221041]
[1732300402657,0.050548,98812.0,98806.0,0.05055]
[1732300402863,0.14709768,98830.0,98806.0,0.01]
[1732300403156,0.050551,98806.0,98800.0,0.46085524]
[1732300403349,0.050551,98805.0,98800.0,0.46085524]
[1732300403550,0.050551,98805.0,98800.0,0.55926474]
[1732300403869,0.05055,98807.0,98802.0,0.050552]
[1732300404052,0.14709768,98820.0,98800.0,0.46085524]
[1732300404251,0.050553,98801.0,98800.0,0.46085524]
[1732300404962,0.050551,98806.0,98800.0,0.46085524]
[1732300405269,0.050551,98806.0,98802.0,0.050553]
[1732300405858,0.050551,98806.0,98802.0,0.360553]
[1732300406456,0.11788,98815.0,98802.0,0.31]
[1732300406654,0.050547,98814.0,98802.0,0.31]
[1732300406858,0.050551,98806.0,98802.0,0.31]
[1732300407050,0.050552,98804.0,98802.0,0.31]
[1732300407252,0.050553,98801.0,98800.0,0.46197524]
[1732300407453,0.050553,98801.0,98800.0,0.46085524]
[1732300412260,0.168473,98801.0,98800.0,0.46085524]
[1732300412456,0.050553,98801.0,98800.0,0.46085524]
[1732300412763,0.168473,98801.0,98800.0,0.46085524]
[1732300413672,0.050553,98801.0,98800.0,0.46085524]
[1732300413965,0.050553,98801.0,98800.0,0.47085524]
[1732300414359,0.07075585,98806.0,98805.0,0.050551]
[1732300414566,0.050553,98801.0,98800.0,0.47085524]
[1732300420661,0.02020485,98806.0,98800.0,0.47085524]
[1732300420662,0.07075585,98806.0,98800.0,0.52140924]
[1732300420868,0.07075585,98806.0,98800.0,0.47085524]
[1732300421064,0.02020485,98806.0,98800.0,0.47085524]
[1732300421365,0.02020485,98806.0,98805.0,0.050551]
[1732300424065,0.07075585,98806.0,98804.0,0.0316]
[1732300424261,0.02020485,98806.0,98805.0,0.050551]
[1732300424561,0.050551,98805.0,98804.0,0.0316]
[1732300425070,0.02020485,98806.0,98803.0,0.3608]
[1732300425071,0.050552,98804.0,98803.0,0.3608]
[1732300425569,0.050552,98804.0,98803.0,0.40723029]
[1732300425873,0.02020485,98806.0,98805.0,0.050551]
[1732300427473,0.07075585,98806.0,98805.0,0.050551]
[1732300428069,0.02020471,98819.0,98805.0,0.30364]
[1732300428270,0.02020471,98819.0,98811.0,0.3608]
[1732300428476,0.050546,98815.0,98814.0,0.050546]
[1732300428965,0.050547,98813.0,98812.0,0.0308]
[1732300430575,0.050545,98817.0,98816.0,0.050545]
[1732300431075,0.050545,98817.0,98812.0,0.0308]
[1732300431076,0.050547,98814.0,98813.0,0.050547]
[1732300431269,0.050547,98814.0,98812.0,0.081347]
[1732300431578,0.050547,98813.0,98812.0,0.0308]
[1732300432976,0.050548,98812.0,98811.0,0.89112]
[1732300433177,0.050548,98812.0,98811.0,0.89]
[1732300433376,0.082648,98812.0,98811.0,0.89]
[1732300433577,0.050553,98802.0,98801.0,0.3608]
[1732300433775,0.050553,98802.0,98801.0,0.4508]
[1732300437478,0.050553,98802.0,98801.0,0.09]
[1732300437878,0.050553,98802.0,98801.0,0.4508]
[1732300441283,0.050551,98806.0,98804.0,0.050551]
[1732300441483,0.00060001,98819.0,98801.0,0.452]
[1732300441685,0.14846246,98827.0,98811.0,0.3608]
[1732300441686,0.04733163,98823.0,98811.0,0.3608]
[1732300441884,0.1435,98827.0,98811.0,1.2808]
[1732300442085,0.050548,98812.0,98811.0,1.2808]
[1732300442384,0.050548,98812.0,98811.0,0.92]
[1732300442786,0.07075298,98812.0,98811.0,0.92]
[1732300444489,0.11771461,98812.0,98811.0,0.92]
[1732300445788,0.07075298,98812.0,98811.0,0.92]
[1732300445990,0.07075298,98812.0,98811.0,0.970548]
[1732300446386,0.07075298,98812.0,98811.0,0.92]
[1732300448387,0.07075298,98812.0,98811.0,1.2808]
[1732300450288,0.07075298,98812.0,98811.0,0.92]
[1732300452295,0.07075298,98812.0,98811.0,0.970548]
[1732300452597,0.38100498,98828.0,98811.0,0.92]
[1732300452788,0.07126499,98828.0,98827.0,0.05054]
[1732300453090,0.07074398,98828.0,98827.0,0.98]
[1732300457582,0.02020498,98828.0,98801.0,0.0332]
[1732300457789,0.050547,98813.0,98812.0,0.32]
[1732300459599,0.411347,98813.0,98812.0,0.32]
[1732300459788,0.411347,98813.0,98806.0,0.10078968]
[1732300459989,0.050552,98804.0,98803.0,0.3608]
[1732300461792,0.05013091,98804.0,98803.0,0.3608]
[1732300462391,0.08153091,98804.0,98803.0,0.3608]
[1732300462693,0.050553,98801.0,98800.0,0.10005524]
[1732300462896,0.050559,98789.0,98788.0,0.10078968]
[1732300463092,0.050559,98789.0,98788.0,0.04]
[1732300464588,0.050559,98789.0,98788.0,0.041584]
[1732300473103,0.04666914,98797.0,98788.0,0.041584]
[1732300473295,0.050554,98801.0,98796.0,0.3608]
[1732300473497,0.01020753,98804.0,98796.0,0.3608]
[1732300473705,0.050559,98790.0,98789.0,0.10078968]
[1732300473900,0.050555,98797.0,98788.0,0.04]
[1732300474203,0.050559,98789.0,98788.0,0.04]
[1732300475393,0.09794878,98797.0,98787.0,0.3608]
[1732300475593,0.41136,98788.0,98787.0,0.05]
[1732300480305,0.41136,98788.0,98770.0,0.411369]
[1732300480306,0.050569,98771.0,98770.0,0.3608]
[1732300481609,0.050569,98771.0,98770.0,0.411369]
[1732300481912,0.050569,98771.0,98770.0,0.711369]
[1732300482503,0.09821101,98786.0,98770.0,0.6608]
[1732300482826,0.38157101,98788.0,98779.0,0.050563]
[1732300482827,0.050565,98780.0,98779.0,0.050563]
[1732300483014,0.02077101,98788.0,98770.0,0.6608]
[1732300483015,0.050563,98782.0,98781.0,0.3608]
[1732300483313,0.050563,98782.0,98781.0,0.5408]
[1732300486611,0.050563,98782.0,98781.0,0.18]
[1732300487210,0.050563,98782.0,98781.0,0.230563]
[1732300487410,0.050561,98786.0,98785.0,0.050561]
[1732300487810,0.050563,98782.0,98781.0,0.18]
[1732300490514,0.16311696,98791.0,98781.0,0.48372]
[1732300490515,0.00151896,98791.0,98781.0,0.48372]
[1732300490815,0.11104,98814.0,98790.0,0.411359]
[1732300491011,0.11104,98814.0,98803.0,0.3608]
[1732300491211,0.05055,98807.0,98803.0,0.841352]
[1732300491422,0.11104,98814.0,98803.0,0.841352]
[1732300491621,0.11104,98814.0,98803.0,0.7908]
[1732300491914,0.06075953,98804.0,98803.0,0.7908]
[1732300492119,0.06075953,98804.0,98803.0,0.79218929]
[1732300493624,0.050555,98799.0,98780.0,0.3608]
[1732300493819,0.050563,98781.0,98780.0,0.4408]
[1732300494322,0.050563,98781.0,98780.0,0.3608]
[1732300498130,0.050563,98781.0,98770.0,0.3608]
[1732300498334,0.050569,98771.0,98770.0,0.3808]
[1732300499029,0.050569,98771.0,98770.0,0.02]
[1732300500426,0.050568,98772.0,98770.0,0.02]
[1732300500622,0.11104,98786.0,98770.0,0.02]
[1732300500930,0.050569,98771.0,98770.0,0.02]
[1732300501230,0.050567,98774.0,98772.0,0.050568]
[1732300501432,0.050562,98783.0,98770.0,0.02]
[1732300501631,0.050565,98777.0,98776.0,0.3608]
[1732300503524,0.050565,98777.0,98767.0,0.3608]
[1732300503729,0.05057,98768.0,98767.0,0.3608]
[1732300503927,0.15589,98768.0,98767.0,0.3608]
[1732300505823,0.15589,98768.0,98747.0,0.00151879]
[1732300505824,0.050579,98750.0,98747.0,0.00151879]
[1732300506224,0.050579,98750.0,98741.0,0.04690897]
[1732300506940,0.050579,98750.0,98734.0,0.10078968]
[1732300507427,0.050579,98750.0,98733.0,0.0328]
[1732300507731,0.41189601,98757.0,98733.0,0.0328]
[1732300507732,1e-08,98757.0,98756.0,0.050576]
[1732300507928,0.02021293,98773.0,98767.0,0.3608]
[1732300508230,0.09821101,98800.0,98772.0,0.3608]
[1732300508231,0.00151887,98795.0,98772.0,0.3608]
[1732300508433,0.050562,98784.0,98780.0,0.411364]
[1732300508734,0.00151887,98795.0,98794.0,0.050557]
[1732300508928,0.00151887,98795.0,98794.0,0.591357]
[1732300509129,0.05207487,98795.0,98794.0,0.591357]
[1732300509430,0.00151887,98795.0,98794.0,0.591357]
[1732300509822,0.050549,98809.0,98794.0,0.591357]
[1732300510023,0.02021293,98817.0,98808.0,0.3608]
[1732300510225,0.02021293,98817.0,98816.0,0.411345]
[1732300510533,9.601e-05,98825.0,98824.0,0.050541]
[1732300510733,9.601e-05,98825.0,98824.0,0.461341]
[1732300511536,0.00151837,98837.0,98824.0,0.4108]
[1732300511742,0.04714876,98858.0,98850.0,0.050528]
[1732300511743,0.050525,98857.0,98850.0,0.050528]
[1732300511924,0.050525,98857.0,98856.0,0.7216]
[1732300512630,0.050525,98857.0,98856.0,0.72168024]
[1732300513040,0.050525,98857.0,98856.0,0.72129024]
[1732300513740,0.050525,98857.0,98856.0,8.024e-05]
[1732300513940,0.354005,98857.0,98847.0,0.3608]
[1732300514240,0.050529,98848.0,98847.0,0.3608]
[1732300519935,0.050529,98848.0,98847.0,0.5708]
[1732300520346,0.13638,98858.0,98847.0,0.5708]
[1732300520840,0.02021293,98859.0,98857.0,0.3608]
[1732300521031,0.02021293,98859.0,98857.0,1.111324]
[1732300521637,0.02021293,98875.0,98867.0,0.050519]
[1732300521941,0.02021293,98875.0,98867.0,0.76218844]
[1732300523254,0.050516,98874.0,98867.0,0.76218844]
[1732300523440,0.050517,98872.0,98867.0,0.76218844]
[1732300523639,0.02021293,98875.0,98867.0,0.76218844]
[1732300523939,0.07072893,98875.0,98867.0,0.76218844]
[1732300524345,0.02021293,98875.0,98867.0,0.81270744]
[1732300524539,0.050516,98874.0,98867.0,0.81270744]
[1732300524847,0.02021293,98875.0,98867.0,0.81270744]
[1732300525144,0.00332542,98868.0,98867.0,0.81270744]
[1732300527336,0.00332542,98868.0,98867.0,0.76218844]
[1732300527547,0.00332542,98868.0,98867.0,0.81270744]
[1732300527935,0.00332542,98868.0,98867.0,0.76218844]
[1732300528144,0.00332542,98868.0,98867.0,0.81270744]
[1732300528944,0.00332542,98868.0,98867.0,0.76218844]
[1732300529650,0.00332542,98868.0,98867.0,0.81270744]
[1732300531547,0.05384442,98868.0,98867.0,0.76218844]
[1732300532449,0.00332542,98868.0,98867.0,0.76218844]
[1732300532646,0.05384442,98868.0,98867.0,0.76218844]
[1732300534346,0.06589281,98868.0,98867.0,0.76218844]
[1732300535136,0.08771915,98868.0,98867.0,0.76218844]
[1732300535543,0.08771915,98868.0,98867.0,0.00138844]
[1732300535746,0.050532,98842.0,98841.0,0.3608]
[1732300535945,0.01356614,98842.0,98836.0,0.3608]
[1732300536138,0.050532,98842.0,98841.0,0.04819233]
[1732300536347,0.06392202,98842.0,98841.0,0.04819233]
[1732300536540,0.01339002,98842.0,98841.0,0.04819233]
[1732300536748,0.01339002,98842.0,98841.0,0.40224533]
[1732300537045,0.0311,98857.0,98841.0,0.09872433]
[1732300537250,0.081625,98857.0,98856.0,0.3608]
[1732300537437,0.1228598,98857.0,98856.0,0.3608]
[1732300537642,0.12285996,98857.0,98856.0,0.3608]
[1732300537847,0.08544896,98857.0,98856.0,0.3608]
[1732300538050,0.08544896,98857.0,98856.0,0.8208]
[1732300538051,0.08414537,98857.0,98856.0,0.8208]
[1732300539147,0.10473338,98857.0,98856.0,0.8208]
[1732300539351,0.10416598,98857.0,98856.0,0.8208]
[1732300539553,0.08357958,98857.0,98856.0,0.8208]
[1732300539749,0.10417228,98857.0,98856.0,0.8208]
[1732300540047,0.10417228,98857.0,98856.0,0.3608]
[1732300540443,0.1104834,98857.0,98856.0,0.3608]
[1732300540648,0.23082768,98857.0,98856.0,0.3608]
[1732300540951,0.1104834,98857.0,98856.0,0.3608]
[1732300541352,0.23082768,98857.0,98856.0,0.3608]
[1732300541552,0.1104834,98857.0,98856.0,0.3608]
[1732300541751,0.10417228,98857.0,98856.0,0.3608]
[1732300543647,0.14381805,98857.0,98856.0,0.6308]
[1732300543842,0.0334592,98857.0,98856.0,1.042125]
[1732300544553,0.0128665,98857.0,98856.0,1.042125]
[1732300545645,0.05052,98866.0,98863.0,0.050521]
[1732300545843,0.050521,98864.0,98862.0,0.050522]
[1732300546051,0.050521,98864.0,98863.0,0.3608]
[1732300546249,0.01302441,98864.0,98863.0,0.3608]
[1732300546449,0.03384743,98864.0,98863.0,0.411321]
[1732300547160,0.06354541,98864.0,98856.0,0.63208]
[1732300547454,0.3608,98861.0,98847.0,0.3608]
[1732300547655,0.050533,98840.0,98839.0,0.3608]